[Event "Early-Titled-Tuesday-Blitz-October-24-2023"]
[Site "Chess.com"]
[Date "2023.10.24"]
[Round "10"]
[White "Malikova777"]
[Black "Kotofeyca"]
[Result "1-0"]
[WhiteElo "2276"]
[BlackElo "2374"]
[TimeControl "180+1"]
[EndTime "9:51:19 PDT"]
[Termination "Malikova777 won by resignation"]

1. d4 {[%clk 0:03:00.9]} 1... d5 {[%clk 0:02:59.3]} 2. c4 {[%clk 0:03:00.9]}
2... c6 {[%clk 0:02:59.9]} 3. cxd5 {[%clk 0:03:01.3]} 3... cxd5 {[%clk
0:02:59.3]} 4. Bf4 {[%clk 0:03:02.2]} 4... Nf6 {[%clk 0:02:59.7]} 5. Nc3 {[%clk
0:03:01.9]} 5... Nc6 {[%clk 0:03:00.3]} 6. e3 {[%clk 0:03:02.4]} 6... a6 {[%clk
0:03:00.9]} 7. Be2 {[%clk 0:03:03]} 7... Bf5 {[%clk 0:03:01]} 8. Nf3 {[%clk
0:03:03.7]} 8... e6 {[%clk 0:03:01.4]} 9. Qb3 {[%clk 0:03:02.2]} 9... Ra7 {[%clk
0:02:55]} 10. O-O {[%clk 0:03:00]} 10... Bd6 {[%clk 0:02:54.9]} 11. Bxd6 {[%clk
0:02:53.5]} 11... Qxd6 {[%clk 0:02:55.8]} 12. a4 {[%clk 0:02:51.3]} 12... O-O
{[%clk 0:02:53.3]} 13. a5 {[%clk 0:02:51.3]} 13... Qb4 {[%clk 0:02:30.4]} 14.
Qxb4 {[%clk 0:02:47.1]} 14... Nxb4 {[%clk 0:02:31.3]} 15. Ne5 {[%clk 0:02:43.6]}
15... Rc8 {[%clk 0:02:27.7]} 16. Ra4 {[%clk 0:02:39.9]} 16... Nc6 {[%clk
0:02:19.9]} 17. Nxc6 {[%clk 0:02:28.3]} 17... Rxc6 {[%clk 0:02:12.3]} 18. Rb4
{[%clk 0:02:27.9]} 18... Ne8 {[%clk 0:01:58.3]} 19. f3 {[%clk 0:02:25.9]} 19...
Nd6 {[%clk 0:01:57.7]} 20. g4 {[%clk 0:02:22.8]} 20... Bg6 {[%clk 0:01:57.5]}
21. h4 {[%clk 0:02:22.6]} 21... h6 {[%clk 0:01:53.6]} 22. Rd1 {[%clk 0:02:19.1]}
22... Kf8 {[%clk 0:01:51.5]} 23. Bd3 {[%clk 0:02:18.8]} 23... Bxd3 {[%clk
0:01:49.4]} 24. Rxd3 {[%clk 0:02:19.7]} 24... Ke7 {[%clk 0:01:34.4]} 25. e4
{[%clk 0:02:19.9]} 25... Rc4 {[%clk 0:01:02.8]} 26. Rb6 {[%clk 0:02:07.3]} 26...
dxe4 {[%clk 0:00:56.3]} 27. fxe4 {[%clk 0:01:59]} 27... Rc7 {[%clk 0:00:52.6]}
28. d5 {[%clk 0:01:53.2]} 28... e5 {[%clk 0:00:42.3]} 29. Rf3 {[%clk 0:01:51.6]}
29... Nc4 {[%clk 0:00:27]} 30. d6+ {[%clk 0:01:37.8]} 30... Nxd6 {[%clk
0:00:25.5]} 31. Nd5+ {[%clk 0:01:37.5]} 31... Kd7 {[%clk 0:00:25.4]} 32. Nxc7
{[%clk 0:01:31.1]} 32... Kxc7 {[%clk 0:00:26.3]} 33. Rc3+ {[%clk 0:01:30.7]}
33... Kd7 {[%clk 0:00:19]} 34. Rd3 {[%clk 0:01:30.6]} 1-0

[Event "Early-Titled-Tuesday-Blitz-October-24-2023"]
[Site "Chess.com"]
[Date "2023.10.24"]
[Round "10"]
[White "NowInChess"]
[Black "Laico"]
[Result "0-1"]
[WhiteElo "2195"]
[BlackElo "2347"]
[TimeControl "180+1"]
[EndTime "9:51:21 PDT"]
[Termination "Laico won on time"]

1. e4 {[%clk 0:03:00.9]} 1... e6 {[%clk 0:02:57.1]} 2. d3 {[%clk 0:03:00.8]}
2... d5 {[%clk 0:02:55.3]} 3. Nd2 {[%clk 0:03:00.8]} 3... Nf6 {[%clk 0:02:54.8]}
4. Ngf3 {[%clk 0:03:00.9]} 4... Bc5 {[%clk 0:02:55.1]} 5. e5 {[%clk 0:02:50.4]}
5... Nfd7 {[%clk 0:02:54.8]} 6. d4 {[%clk 0:02:50.6]} 6... Bb6 {[%clk
0:02:55.6]} 7. Bd3 {[%clk 0:02:49.7]} 7... c5 {[%clk 0:02:56.5]} 8. c3 {[%clk
0:02:49.9]} 8... Nc6 {[%clk 0:02:57.2]} 9. O-O {[%clk 0:02:40.7]} 9... cxd4
{[%clk 0:02:57.1]} 10. Re1 {[%clk 0:02:39.6]} 10... dxc3 {[%clk 0:02:55.4]} 11.
bxc3 {[%clk 0:02:39.8]} 11... O-O {[%clk 0:02:54.3]} 12. Nb3 {[%clk 0:02:36.4]}
12... f6 {[%clk 0:02:51.7]} 13. exf6 {[%clk 0:02:13.7]} 13... Qxf6 {[%clk
0:02:52.6]} 14. Nbd4 {[%clk 0:01:41.8]} 14... e5 {[%clk 0:02:42.7]} 15. Bg5
{[%clk 0:01:22.1]} 15... Qf7 {[%clk 0:02:34.7]} 16. Nxc6 {[%clk 0:01:03.5]}
16... bxc6 {[%clk 0:02:35.6]} 17. Be3 {[%clk 0:00:46.9]} 17... e4 {[%clk
0:02:32]} 18. Ng5 {[%clk 0:00:42.1]} 18... Qg6 {[%clk 0:02:31.6]} 19. Bxe4
{[%clk 0:00:11.2]} 19... dxe4 {[%clk 0:02:27.5]} 20. Bxb6 {[%clk 0:00:10.9]}
20... Qxg5 {[%clk 0:02:10.8]} 21. Bd4 {[%clk 0:00:04.9]} 21... Nf6 {[%clk
0:01:56.8]} 22. Bxf6 {[%clk 0:00:03]} 22... Qxf6 {[%clk 0:01:47]} 23. Qc2 {[%clk
0:00:02.9]} 23... Ba6 {[%clk 0:01:24.6]} 24. Rxe4 {[%clk 0:00:02.3]} 24... Rad8
{[%clk 0:01:22.3]} 25. Rae1 {[%clk 0:00:01.5]} 25... Bd3 {[%clk 0:01:22]} 26.
Qb3+ {[%clk 0:00:01.5]} 26... Kh8 {[%clk 0:01:21.3]} 0-1

[Event "Early-Titled-Tuesday-Blitz-October-24-2023"]
[Site "Chess.com"]
[Date "2023.10.24"]
[Round "10"]
[White "Politov_Pavel"]
[Black "CraiggoryC"]
[Result "1-0"]
[WhiteElo "2082"]
[BlackElo "2199"]
[TimeControl "180+1"]
[EndTime "9:51:25 PDT"]
[Termination "Politov_Pavel won on time"]

1. d4 {[%clk 0:03:00.9]} 1... e6 {[%clk 0:02:58.9]} 2. e4 {[%clk 0:02:57.9]}
2... d5 {[%clk 0:02:57.6]} 3. Nc3 {[%clk 0:02:58.1]} 3... Bb4 {[%clk 0:02:56.9]}
4. e5 {[%clk 0:02:57.1]} 4... c5 {[%clk 0:02:57.5]} 5. a3 {[%clk 0:02:56.5]}
5... Bxc3+ {[%clk 0:02:58.1]} 6. bxc3 {[%clk 0:02:57.4]} 6... Ne7 {[%clk
0:02:58.6]} 7. Qg4 {[%clk 0:02:57.2]} 7... Qc7 {[%clk 0:02:59.2]} 8. Qxg7 {[%clk
0:02:56.5]} 8... Rg8 {[%clk 0:02:59.8]} 9. Qxh7 {[%clk 0:02:56.7]} 9... cxd4
{[%clk 0:03:00.5]} 10. Ne2 {[%clk 0:02:56.6]} 10... Nbc6 {[%clk 0:02:59.3]} 11.
f4 {[%clk 0:02:54.8]} 11... dxc3 {[%clk 0:02:59.7]} 12. h4 {[%clk 0:02:53.4]}
12... Bd7 {[%clk 0:02:55.3]} 13. h5 {[%clk 0:02:52.5]} 13... O-O-O {[%clk
0:02:52.5]} 14. Qd3 {[%clk 0:02:52.5]} 14... d4 {[%clk 0:02:35.4]} 15. Rg1
{[%clk 0:02:44.8]} 15... Rg4 {[%clk 0:02:10]} 16. g3 {[%clk 0:02:43.7]} 16...
Rh8 {[%clk 0:02:09.3]} 17. Bh3 {[%clk 0:02:42.3]} 17... Rg7 {[%clk 0:01:58.3]}
18. g4 {[%clk 0:02:41]} 18... Qb6 {[%clk 0:01:26.8]} 19. Ng3 {[%clk 0:02:15.1]}
19... Na5 {[%clk 0:00:31.6]} 20. Kf2 {[%clk 0:02:09]} 20... Bb5 {[%clk
0:00:30.1]} 21. Qf3 {[%clk 0:01:58.7]} 21... Nc4 {[%clk 0:00:16.6]} 22. Kg2
{[%clk 0:01:50.8]} 22... Bc6 {[%clk 0:00:15.2]} 23. Ne4 {[%clk 0:01:49.5]} 23...
Nd2 {[%clk 0:00:12.9]} 24. Bxd2 {[%clk 0:01:48]} 24... cxd2 {[%clk 0:00:13.3]}
25. Kh2 {[%clk 0:01:44.8]} 25... Bxe4 {[%clk 0:00:11.8]} 26. Qxe4 {[%clk
0:01:44.7]} 26... Qc5 {[%clk 0:00:08.6]} 27. Rgd1 {[%clk 0:01:41]} 27... Nd5
{[%clk 0:00:08.4]} 28. Rxd2 {[%clk 0:01:39.6]} 28... Qc3 {[%clk 0:00:08.3]} 29.
Qxd4 {[%clk 0:01:35.1]} 29... Qf3 {[%clk 0:00:01.6]} 30. Rf2 {[%clk 0:01:26.7]}
1-0

[Event "Early-Titled-Tuesday-Blitz-October-24-2023"]
[Site "Chess.com"]
[Date "2023.10.24"]
[Round "10"]
[White "vugarrasulov"]
[Black "Elsa167"]
[Result "0-1"]
[WhiteElo "2996"]
[BlackElo "2884"]
[TimeControl "180+1"]
[EndTime "9:51:42 PDT"]
[Termination "Elsa167 won on time"]

1. e4 {[%clk 0:03:00.9]} 1... e6 {[%clk 0:02:58.9]} 2. d4 {[%clk 0:03:00.6]}
2... d5 {[%clk 0:02:59.6]} 3. exd5 {[%clk 0:03:01.2]} 3... exd5 {[%clk
0:03:00.5]} 4. Nf3 {[%clk 0:03:01.5]} 4... Nc6 {[%clk 0:02:59.8]} 5. c4 {[%clk
0:02:57.7]} 5... Nf6 {[%clk 0:02:58.3]} 6. Nc3 {[%clk 0:02:57.7]} 6... Bb4
{[%clk 0:02:56.8]} 7. Be2 {[%clk 0:02:53.7]} 7... O-O {[%clk 0:02:55.8]} 8. O-O
{[%clk 0:02:54]} 8... dxc4 {[%clk 0:02:55]} 9. a3 {[%clk 0:02:51.4]} 9... Bxc3
{[%clk 0:02:53.7]} 10. bxc3 {[%clk 0:02:52.3]} 10... Be6 {[%clk 0:02:34.9]} 11.
Bg5 {[%clk 0:02:43.5]} 11... h6 {[%clk 0:02:29.4]} 12. Bh4 {[%clk 0:02:43.8]}
12... Bd5 {[%clk 0:02:22.2]} 13. Rb1 {[%clk 0:02:38.6]} 13... Qd6 {[%clk
0:02:03.9]} 14. Bg3 {[%clk 0:02:35.7]} 14... Qxa3 {[%clk 0:02:03.3]} 15. Qc1
{[%clk 0:02:23.1]} 15... Qxc1 {[%clk 0:02:03.2]} 16. Rfxc1 {[%clk 0:02:24]}
16... Na5 {[%clk 0:01:55.1]} 17. Bxc7 {[%clk 0:02:06.1]} 17... Nb3 {[%clk
0:01:51.7]} 18. Re1 {[%clk 0:02:04.3]} 18... Ne4 {[%clk 0:01:39.1]} 19. Bxc4
{[%clk 0:01:59.8]} 19... Bxc4 {[%clk 0:01:39.5]} 20. Rxe4 {[%clk 0:01:54.8]}
20... Bd3 {[%clk 0:01:39.4]} 21. Rxb3 {[%clk 0:01:53.1]} 21... Bxe4 {[%clk
0:01:39.5]} 22. Ne5 {[%clk 0:01:54]} 22... Rfc8 {[%clk 0:01:34.6]} 23. Bd6
{[%clk 0:01:53.1]} 23... Bd5 {[%clk 0:01:31.9]} 24. Ra3 {[%clk 0:01:52.7]} 24...
f6 {[%clk 0:01:17.3]} 25. Ng6 {[%clk 0:01:51.9]} 25... Kf7 {[%clk 0:01:15]} 26.
Ne7 {[%clk 0:01:49.6]} 26... Re8 {[%clk 0:01:02.2]} 0-1

[Event "Early-Titled-Tuesday-Blitz-October-24-2023"]
[Site "Chess.com"]
[Date "2023.10.24"]
[Round "10"]
[White "AnaKuchava"]
[Black "IsaqueGoncalvesSanto"]
[Result "1-0"]
[WhiteElo "2225"]
[BlackElo "1840"]
[TimeControl "180+1"]
[EndTime "9:51:45 PDT"]
[Termination "AnaKuchava won by resignation"]

1. d4 {[%clk 0:03:00.9]} 1... d5 {[%clk 0:02:56.8]} 2. Nf3 {[%clk 0:03:00.4]}
2... e6 {[%clk 0:02:53.7]} 3. c4 {[%clk 0:03:00.2]} 3... c6 {[%clk 0:02:50.7]}
4. Qb3 {[%clk 0:02:57.5]} 4... Nf6 {[%clk 0:02:47.1]} 5. Bg5 {[%clk 0:02:55.9]}
5... Be7 {[%clk 0:02:46.6]} 6. e3 {[%clk 0:02:54.9]} 6... O-O {[%clk 0:02:46.6]}
7. Bd3 {[%clk 0:02:52.4]} 7... h6 {[%clk 0:02:37.6]} 8. Bh4 {[%clk 0:02:51.7]}
8... dxc4 {[%clk 0:02:36.1]} 9. Qxc4 {[%clk 0:02:51]} 9... b5 {[%clk 0:02:36]}
10. Qc2 {[%clk 0:02:51]} 10... a6 {[%clk 0:02:36.2]} 11. O-O {[%clk 0:02:49.8]}
11... Bb7 {[%clk 0:02:36.5]} 12. Nbd2 {[%clk 0:02:36.6]} 12... Nbd7 {[%clk
0:02:35.6]} 13. Nb3 {[%clk 0:02:27.6]} 13... Rc8 {[%clk 0:02:30.4]} 14. Nc5
{[%clk 0:02:23.8]} 14... Nxc5 {[%clk 0:02:29.7]} 15. dxc5 {[%clk 0:02:24.7]}
15... Nd7 {[%clk 0:02:25.2]} 16. Bxe7 {[%clk 0:02:22]} 16... Qxe7 {[%clk
0:02:25]} 17. b4 {[%clk 0:02:21.5]} 17... a5 {[%clk 0:02:18.8]} 18. a3 {[%clk
0:02:21.2]} 18... a4 {[%clk 0:02:18.6]} 19. Rfd1 {[%clk 0:02:18.4]} 19... Rcd8
{[%clk 0:02:18.1]} 20. Rd2 {[%clk 0:02:09.9]} 20... f6 {[%clk 0:02:14.4]} 21.
Rad1 {[%clk 0:02:05.5]} 21... Nb8 {[%clk 0:02:07.7]} 22. Bg6 {[%clk 0:01:24.7]}
22... e5 {[%clk 0:02:03.4]} 23. Nh4 {[%clk 0:01:14.9]} 23... Bc8 {[%clk
0:01:58.5]} 24. Bh7+ {[%clk 0:01:08.9]} 24... Kf7 {[%clk 0:01:54.4]} 25. Qg6+
{[%clk 0:00:48.7]} 25... Ke6 {[%clk 0:01:54]} 26. Rd6+ {[%clk 0:00:48.5]} 26...
Rxd6 {[%clk 0:01:51.8]} 27. Rxd6+ {[%clk 0:00:49.4]} 27... Qxd6 {[%clk
0:01:51.2]} 28. cxd6 {[%clk 0:00:50.3]} 28... Kxd6 {[%clk 0:01:51.4]} 29. Qxg7
{[%clk 0:00:48.7]} 29... Nd7 {[%clk 0:01:45.3]} 30. Bf5 {[%clk 0:00:46.5]} 30...
Rd8 {[%clk 0:01:40.1]} 31. Bxd7 {[%clk 0:00:44.2]} 31... Rxd7 {[%clk 0:01:39.6]}
32. Qxf6+ {[%clk 0:00:44.4]} 32... Kc7 {[%clk 0:01:40.2]} 33. Qxe5+ {[%clk
0:00:44.4]} 33... Kb7 {[%clk 0:01:39.7]} 34. f4 {[%clk 0:00:41]} 34... Rd3
{[%clk 0:01:33.6]} 35. Qe7+ {[%clk 0:00:27.6]} 35... Bd7 {[%clk 0:01:32.8]} 36.
f5 {[%clk 0:00:27.3]} 36... Kc7 {[%clk 0:01:28.5]} 37. f6 {[%clk 0:00:25.8]}
37... Rxa3 {[%clk 0:01:26.1]} 38. f7 {[%clk 0:00:26.2]} 1-0

[Event "Early-Titled-Tuesday-Blitz-October-24-2023"]
[Site "Chess.com"]
[Date "2023.10.24"]
[Round "10"]
[White "IljaZaragatski"]
[Black "Hovik_Hayrapetyan"]
[Result "0-1"]
[WhiteElo "2642"]
[BlackElo "2809"]
[TimeControl "180+1"]
[EndTime "9:51:48 PDT"]
[Termination "Hovik_Hayrapetyan won by resignation"]

1. Nf3 {[%clk 0:03:00.9]} 1... Nf6 {[%clk 0:02:59.4]} 2. g3 {[%clk 0:03:01]}
2... d5 {[%clk 0:02:59.7]} 3. Bg2 {[%clk 0:03:00.9]} 3... e6 {[%clk 0:02:59.6]}
4. c4 {[%clk 0:03:01.2]} 4... Be7 {[%clk 0:03:00.5]} 5. b3 {[%clk 0:03:01.6]}
5... c5 {[%clk 0:02:59.1]} 6. cxd5 {[%clk 0:03:01.1]} 6... exd5 {[%clk
0:02:58.5]} 7. Bb2 {[%clk 0:03:01.2]} 7... d4 {[%clk 0:02:57.5]} 8. O-O {[%clk
0:03:00.5]} 8... Nc6 {[%clk 0:02:56.6]} 9. e3 {[%clk 0:03:00.6]} 9... dxe3
{[%clk 0:02:42.9]} 10. dxe3 {[%clk 0:03:00.8]} 10... O-O {[%clk 0:02:43.1]} 11.
Nc3 {[%clk 0:02:56.5]} 11... Bf5 {[%clk 0:02:38.7]} 12. Qxd8 {[%clk 0:02:54]}
12... Rfxd8 {[%clk 0:02:36.3]} 13. Rfd1 {[%clk 0:02:54.1]} 13... Rac8 {[%clk
0:02:20.9]} 14. Ne1 {[%clk 0:02:40.8]} 14... b6 {[%clk 0:02:14.6]} 15. h3 {[%clk
0:02:40.3]} 15... Be6 {[%clk 0:01:49.8]} 16. Nd3 {[%clk 0:02:35.6]} 16... g5
{[%clk 0:01:42.2]} 17. f4 {[%clk 0:02:00.6]} 17... h6 {[%clk 0:01:36.1]} 18. Kf2
{[%clk 0:01:56.4]} 18... c4 {[%clk 0:01:29.8]} 19. bxc4 {[%clk 0:01:51.4]} 19...
Bxc4 {[%clk 0:01:30.7]} 20. Bxc6 {[%clk 0:01:29.1]} 20... Bxd3 {[%clk
0:01:30.7]} 21. Bf3 {[%clk 0:01:21.5]} 21... b5 {[%clk 0:01:18.7]} 22. Rac1
{[%clk 0:01:18.5]} 22... gxf4 {[%clk 0:01:15.8]} 23. gxf4 {[%clk 0:01:08.4]}
23... b4 {[%clk 0:01:15.8]} 24. Ne2 {[%clk 0:01:05.4]} 24... Ne4+ {[%clk
0:01:11.2]} 25. Bxe4 {[%clk 0:01:05.6]} 25... Bxe4 {[%clk 0:01:12.1]} 26. Rg1+
{[%clk 0:01:03.2]} 26... Kf8 {[%clk 0:01:08.2]} 27. Rxc8 {[%clk 0:00:53.4]}
27... Rxc8 {[%clk 0:01:09.1]} 28. Bg7+ {[%clk 0:00:53.4]} 28... Ke8 {[%clk
0:01:09.3]} 29. Nd4 {[%clk 0:00:54]} 29... h5 {[%clk 0:00:56.9]} 30. f5 {[%clk
0:00:41.5]} 30... Bh4+ {[%clk 0:00:55.7]} 31. Ke2 {[%clk 0:00:41.5]} 31... Rc3
{[%clk 0:00:50]} 32. Rb1 {[%clk 0:00:24.6]} 32... Bxb1 {[%clk 0:00:49.2]} 0-1

[Event "Early-Titled-Tuesday-Blitz-October-24-2023"]
[Site "Chess.com"]
[Date "2023.10.24"]
[Round "10"]
[White "MidnightFox"]
[Black "KorolDimitriy75"]
[Result "1-0"]
[WhiteElo "2504"]
[BlackElo "2347"]
[TimeControl "180+1"]
[EndTime "9:51:48 PDT"]
[Termination "MidnightFox won on time"]

1. e4 {[%clk 0:03:00.9]} 1... c5 {[%clk 0:03:00.1]} 2. Nf3 {[%clk 0:03:00.6]}
2... d6 {[%clk 0:03:00.4]} 3. d4 {[%clk 0:02:59]} 3... cxd4 {[%clk 0:03:01.3]}
4. Nxd4 {[%clk 0:02:59.4]} 4... Nf6 {[%clk 0:03:01.9]} 5. Nc3 {[%clk 0:02:59.9]}
5... g6 {[%clk 0:03:02.5]} 6. h3 {[%clk 0:02:51.4]} 6... Bg7 {[%clk 0:03:02.3]}
7. Be3 {[%clk 0:02:52]} 7... O-O {[%clk 0:03:00.9]} 8. Bc4 {[%clk 0:02:52.6]}
8... Nc6 {[%clk 0:02:59.8]} 9. Bb3 {[%clk 0:02:53]} 9... Bd7 {[%clk 0:02:56.7]}
10. Qd2 {[%clk 0:02:51.5]} 10... Qa5 {[%clk 0:02:55.5]} 11. O-O-O {[%clk
0:02:48.7]} 11... Rfc8 {[%clk 0:02:49.2]} 12. Kb1 {[%clk 0:02:48.4]} 12... Ne5
{[%clk 0:02:46.8]} 13. Nd5 {[%clk 0:02:44.2]} 13... Qxd2 {[%clk 0:02:42.6]} 14.
Rxd2 {[%clk 0:02:44.3]} 14... Nxd5 {[%clk 0:02:33.5]} 15. exd5 {[%clk
0:02:38.7]} 15... Nc4 {[%clk 0:02:30.5]} 16. Bxc4 {[%clk 0:02:37.8]} 16... Rxc4
{[%clk 0:02:31.4]} 17. c3 {[%clk 0:02:35.6]} 17... b5 {[%clk 0:02:18.9]} 18. a3
{[%clk 0:02:25]} 18... a5 {[%clk 0:02:17.3]} 19. Bg5 {[%clk 0:02:20.7]} 19... b4
{[%clk 0:02:02.5]} 20. Bxe7 {[%clk 0:02:12.8]} 20... bxc3 {[%clk 0:01:48.2]} 21.
bxc3 {[%clk 0:02:09.9]} 21... Rxc3 {[%clk 0:01:28.9]} 22. Bxd6 {[%clk
0:02:05.1]} 22... Rac8 {[%clk 0:01:01.5]} 23. Re1 {[%clk 0:01:52]} 23... R3c4
{[%clk 0:00:16.3]} 24. Be5 {[%clk 0:01:11.6]} 24... Re8 {[%clk 0:00:15.6]} 25.
Nf3 {[%clk 0:01:11.7]} 25... Bf5+ {[%clk 0:00:07.9]} 26. Ka2 {[%clk 0:01:07.9]}
26... Be4 {[%clk 0:00:01.5]} 27. Bxg7 {[%clk 0:01:05.3]} 27... Kxg7 {[%clk
0:00:02.4]} 28. d6 {[%clk 0:01:01.3]} 28... Rd8 {[%clk 0:00:01.4]} 29. Ne5
{[%clk 0:00:58.2]} 1-0

[Event "Early-Titled-Tuesday-Blitz-October-24-2023"]
[Site "Chess.com"]
[Date "2023.10.24"]
[Round "10"]
[White "pankajfm"]
[Black "Sharan_Rao"]
[Result "1/2-1/2"]
[WhiteElo "2174"]
[BlackElo "2581"]
[TimeControl "180+1"]
[EndTime "9:51:53 PDT"]
[Termination "Game drawn by stalemate"]

1. e4 {[%clk 0:03:00.9]} 1... c6 {[%clk 0:02:58.3]} 2. d4 {[%clk 0:03:00.4]}
2... d5 {[%clk 0:02:58.8]} 3. exd5 {[%clk 0:03:01.3]} 3... cxd5 {[%clk
0:02:59.7]} 4. Bd3 {[%clk 0:03:02]} 4... Nc6 {[%clk 0:03:00.2]} 5. c3 {[%clk
0:03:02.4]} 5... Nf6 {[%clk 0:03:00.9]} 6. Bf4 {[%clk 0:03:01.6]} 6... g6 {[%clk
0:03:01]} 7. Nf3 {[%clk 0:02:59.8]} 7... Bg7 {[%clk 0:03:01.6]} 8. O-O {[%clk
0:02:59.7]} 8... O-O {[%clk 0:03:02.3]} 9. h3 {[%clk 0:03:00.3]} 9... Bf5 {[%clk
0:03:02.7]} 10. Be2 {[%clk 0:02:59.6]} 10... Qb6 {[%clk 0:03:00.8]} 11. Qb3
{[%clk 0:02:58.6]} 11... Na5 {[%clk 0:02:33.8]} 12. Qxb6 {[%clk 0:02:52.6]}
12... axb6 {[%clk 0:02:34.7]} 13. Nbd2 {[%clk 0:02:52.8]} 13... Nd7 {[%clk
0:02:33.7]} 14. g4 {[%clk 0:02:45.7]} 14... Be4 {[%clk 0:02:27.2]} 15. Nxe4
{[%clk 0:02:43.9]} 15... dxe4 {[%clk 0:02:28.1]} 16. Ng5 {[%clk 0:02:44.2]}
16... Nf6 {[%clk 0:01:39.7]} 17. Be5 {[%clk 0:02:41.7]} 17... Rfe8 {[%clk
0:01:38.1]} 18. Bb5 {[%clk 0:02:39.1]} 18... Nc6 {[%clk 0:01:32.7]} 19. Rfe1
{[%clk 0:02:35.4]} 19... h6 {[%clk 0:01:20.6]} 20. Nxe4 {[%clk 0:02:30.1]} 20...
Nxe4 {[%clk 0:01:21.4]} 21. Rxe4 {[%clk 0:02:30.6]} 21... Bxe5 {[%clk
0:01:20.2]} 22. dxe5 {[%clk 0:02:24.8]} 22... Red8 {[%clk 0:01:20.2]} 23. Bxc6
{[%clk 0:02:19.6]} 23... bxc6 {[%clk 0:01:19.4]} 24. Rd4 {[%clk 0:02:20.5]}
24... Rxd4 {[%clk 0:01:15]} 25. cxd4 {[%clk 0:02:20.5]} 25... Ra4 {[%clk
0:01:15.9]} 26. Rc1 {[%clk 0:02:12.6]} 26... Rxa2 {[%clk 0:01:13.1]} 27. Rxc6
{[%clk 0:02:12.3]} 27... Rxb2 {[%clk 0:01:13]} 28. d5 {[%clk 0:02:09.7]} 28...
b5 {[%clk 0:01:06.7]} 29. d6 {[%clk 0:02:08.1]} 29... exd6 {[%clk 0:01:05.4]}
30. exd6 {[%clk 0:02:09]} 30... Kg7 {[%clk 0:01:01.3]} 31. d7 {[%clk 0:02:06.5]}
31... Rd2 {[%clk 0:00:59.4]} 32. Rc7 {[%clk 0:02:03.9]} 32... Kf6 {[%clk
0:00:57.4]} 33. Rb7 {[%clk 0:01:55.2]} 33... Kg5 {[%clk 0:00:50.9]} 34. Rxb5+
{[%clk 0:01:51.7]} 34... Kh4 {[%clk 0:00:50.1]} 35. Kg2 {[%clk 0:01:47.9]} 35...
Rxd7 {[%clk 0:00:49.8]} 36. Re5 {[%clk 0:01:47.7]} 36... Rb7 {[%clk 0:00:46.6]}
37. Rd5 {[%clk 0:01:44]} 37... Rb4 {[%clk 0:00:42.8]} 38. Re5 {[%clk 0:01:43.8]}
38... Rf4 {[%clk 0:00:40.6]} 39. Rd5 {[%clk 0:01:41.1]} 39... f6 {[%clk
0:00:31.7]} 40. Ra5 {[%clk 0:01:40]} 40... f5 {[%clk 0:00:29.8]} 41. gxf5 {[%clk
0:01:39.8]} 41... Rxf5 {[%clk 0:00:27.1]} 42. Rxf5 {[%clk 0:01:27.2]} 42... gxf5
{[%clk 0:00:28]} 43. f4 {[%clk 0:01:27.7]} 43... h5 {[%clk 0:00:18.7]} 44. Kh2
{[%clk 0:01:27.8]} 1/2-1/2

[Event "Early-Titled-Tuesday-Blitz-October-24-2023"]
[Site "Chess.com"]
[Date "2023.10.24"]
[Round "10"]
[White "twofoxniel"]
[Black "Korchmar_Vasiliy"]
[Result "0-1"]
[WhiteElo "2603"]
[BlackElo "2776"]
[TimeControl "180+1"]
[EndTime "9:51:54 PDT"]
[Termination "Korchmar_Vasiliy won by resignation"]

1. e4 {[%clk 0:03:00.9]} 1... c5 {[%clk 0:03:00.1]} 2. c3 {[%clk 0:02:57.6]}
2... d5 {[%clk 0:02:58.8]} 3. exd5 {[%clk 0:02:57.7]} 3... Nf6 {[%clk
0:02:59.4]} 4. d4 {[%clk 0:02:58.6]} 4... Nxd5 {[%clk 0:02:53.9]} 5. Nf3 {[%clk
0:02:57.8]} 5... cxd4 {[%clk 0:02:53.2]} 6. cxd4 {[%clk 0:02:57.6]} 6... g6
{[%clk 0:02:51.6]} 7. Nc3 {[%clk 0:02:58.2]} 7... Bg7 {[%clk 0:02:46.9]} 8. Bc4
{[%clk 0:02:58.3]} 8... Nxc3 {[%clk 0:02:45.7]} 9. bxc3 {[%clk 0:02:58.1]} 9...
Qc7 {[%clk 0:02:45.4]} 10. Qe2 {[%clk 0:02:58.1]} 10... O-O {[%clk 0:02:37.6]}
11. O-O {[%clk 0:02:57.2]} 11... Bg4 {[%clk 0:02:37.4]} 12. Bg5 {[%clk
0:02:37.2]} 12... Bxf3 {[%clk 0:02:34.4]} 13. gxf3 {[%clk 0:02:38.1]} 13... Nc6
{[%clk 0:02:33.8]} 14. Rac1 {[%clk 0:02:36.9]} 14... e5 {[%clk 0:02:31.7]} 15.
d5 {[%clk 0:02:33.1]} 15... Ne7 {[%clk 0:02:27.4]} 16. Rfd1 {[%clk 0:02:28.9]}
16... Nf5 {[%clk 0:02:25.5]} 17. Bd3 {[%clk 0:02:20.1]} 17... Nd6 {[%clk
0:02:25.4]} 18. c4 {[%clk 0:02:19.9]} 18... b6 {[%clk 0:02:26.1]} 19. Be3 {[%clk
0:02:18.3]} 19... Nb7 {[%clk 0:02:20.6]} 20. Bc2 {[%clk 0:02:10.8]} 20... Rad8
{[%clk 0:02:17.6]} 21. Ba4 {[%clk 0:02:10.3]} 21... Qe7 {[%clk 0:02:12.2]} 22.
Bc6 {[%clk 0:02:05.4]} 22... Nd6 {[%clk 0:02:07.7]} 23. c5 {[%clk 0:02:04.1]}
23... bxc5 {[%clk 0:02:08.6]} 24. Bxc5 {[%clk 0:02:04.1]} 24... Bh6 {[%clk
0:02:05]} 25. Rb1 {[%clk 0:01:59.1]} 25... Bf4 {[%clk 0:02:04.5]} 26. Qf1 {[%clk
0:01:52.5]} 26... Qf6 {[%clk 0:01:45.6]} 27. Qg2 {[%clk 0:01:51.6]} 27... Nf5
{[%clk 0:01:45.7]} 28. Bxf8 {[%clk 0:01:46.2]} 28... Kxf8 {[%clk 0:01:46.6]} 29.
Qh3 {[%clk 0:01:30.8]} 29... Kg7 {[%clk 0:01:42.1]} 30. Rb7 {[%clk 0:01:29.9]}
30... Nd4 {[%clk 0:01:28.7]} 31. Bd7 {[%clk 0:01:08.5]} 31... Qa6 {[%clk
0:01:18.5]} 32. Rdb1 {[%clk 0:01:05.7]} 32... Qd3 {[%clk 0:01:15.2]} 33. Kg2
{[%clk 0:01:01.8]} 33... e4 {[%clk 0:01:09]} 34. fxe4 {[%clk 0:00:55.8]} 34...
Qxe4+ {[%clk 0:01:09.9]} 35. Kg1 {[%clk 0:00:54.1]} 35... Nf3+ {[%clk
0:01:08.1]} 36. Kg2 {[%clk 0:00:52.6]} 36... Ng5+ {[%clk 0:01:06.4]} 37. Kf1
{[%clk 0:00:45.3]} 37... Nxh3 {[%clk 0:01:04.3]} 38. Bxh3 {[%clk 0:00:46.2]}
38... Rxd5 {[%clk 0:00:51.1]} 0-1